bitfinex/quotes_SOLUSD_20241210
["timestamp","ask_amount","ask_price","bid_price","bid_amount"]
[1733791842757,36.35725838,218.41,218.33,36.35725838]
[1733791843117,36.35725838,218.39,218.32,36.89718368]
[1733791843522,6.0097,218.44,218.32,0.5399253]
[1733791843720,6.0097,218.5,218.38,36.35725838]
[1733791843928,36.35725838,218.42,218.34,36.35725838]
[1733791844256,36.35725838,218.41,218.34,36.35725838]
[1733791844422,36.35725838,218.42,218.35,36.35725838]
[1733791844625,36.35725838,218.42,218.36,0.12549]
[1733791844835,36.35725838,218.4,218.33,36.35725838]
[1733791845954,36.35725838,218.38,218.32,0.5399253]
[1733791846151,36.35725838,218.39,218.32,0.5399253]
[1733791846326,36.35725838,218.37,218.32,0.5399253]
[1733791847243,36.35725838,218.39,218.32,0.5399253]
[1733791847547,36.35725838,218.38,218.32,0.5399253]
[1733791847748,36.35725838,218.33,218.32,0.5399253]
[1733791850062,36.35725838,218.35,218.32,0.5399253]
[1733791850258,36.35725838,218.36,218.32,0.5399253]
[1733791850419,36.35725838,218.37,218.33,0.12549]
[1733791851246,36.35725838,218.38,218.33,0.12549]
[1733791851751,36.35725838,218.41,218.35,0.12549]
[1733791852641,36.35725838,218.4,218.34,0.12549]
[1733791853039,36.35725838,218.39,218.34,0.12549]
[1733791853245,36.35725838,218.39,218.32,0.5399253]
[1733791853246,36.35725838,218.37,218.32,0.5399253]
[1733791853446,36.35725838,218.39,218.32,0.5399253]
[1733791853959,36.35725838,218.36,218.32,0.5399253]
[1733791854159,36.35725838,218.35,218.32,0.5399253]
[1733791854346,36.35725838,218.34,218.32,0.5399253]
[1733791854545,36.35725838,218.33,218.32,0.5399253]
[1733791857467,2.2892,218.42,218.32,0.5399253]
[1733791857640,36.35725838,218.38,218.32,0.5399253]
[1733791858339,36.35725838,218.38,218.33,0.12549]
[1733791861456,36.35725838,218.41,218.33,36.48274838]
[1733791861653,37.43710898,218.44,218.36,36.35725838]
[1733791861853,37.43710898,218.44,218.37,0.12549]
[1733791862045,36.35725838,218.42,218.37,0.12549]
[1733791862588,36.35725838,218.42,218.35,0.12549]
[1733791863272,23.45174153,218.44,218.37,0.12549]
[1733791863463,1.0798506,218.44,218.41,0.12549]
[1733791863668,1.0798506,218.44,218.43,22.49738093]
[1733791863973,1.0798506,218.44,218.43,0.12549]
[1733791864161,23.45174153,218.44,218.43,0.12549]
[1733791864347,1.0798506,218.44,218.43,0.12549]
[1733791864769,1.0798506,218.44,218.41,0.12549]
[1733791864978,1.0798506,218.44,218.39,0.12549]
[1733791865178,1.0798506,218.44,218.37,0.12549]
[1733791865475,1.0798506,218.44,218.4,0.12549]
[1733791865648,23.45174153,218.44,218.37,22.49738093]
[1733791865849,22.37189093,218.43,218.37,0.12549]
[1733791866355,22.37189093,218.4,218.33,22.37189093]
[1733791866979,23.45174153,218.44,218.37,22.37189093]
[1733791867158,1.0798506,218.44,218.4,22.37189093]
[1733791867477,1.0798506,218.44,218.38,22.37189093]
[1733791867694,22.37189093,218.42,218.3,22.37189093]
[1733791867857,22.37189093,218.42,218.32,318.8892253]
[1733791868362,22.37189093,218.42,218.34,22.37189093]
[1733791868567,22.37189093,218.43,218.36,22.37189093]
[1733791868775,22.37189093,218.43,218.32,6.8892253]
[1733791868776,1.0798506,218.44,218.38,22.37189093]
[1733791869087,1.0798506,218.44,218.4,0.12549]
[1733791869287,1.0798506,218.44,218.4,22.49738093]
[1733791869688,1.0798506,218.44,218.42,0.12549]
[1733791869888,1.0798506,218.44,218.43,22.49738093]
[1733791870090,1.0798506,218.44,218.43,0.12549]
[1733791870480,1.0798506,218.44,218.41,0.12549]
[1733791870791,1.0798506,218.44,218.39,0.12549]
[1733791870967,1.0798506,218.44,218.37,22.37189093]
[1733791871169,22.37189093,218.4,218.33,22.37189093]
[1733791871491,22.37189093,218.38,218.32,0.5399253]
[1733791871791,22.37189093,218.37,218.32,0.5399253]
[1733791871978,6.3627,218.4,218.32,0.5399253]
[1733791871979,22.37189093,218.35,218.32,0.5399253]
[1733791872166,22.37189093,218.33,218.32,0.5399253]
[1733791873391,42.37189093,218.37,218.32,0.5399253]
[1733791873593,22.37189093,218.36,218.32,0.5399253]
[1733791873900,20.0,218.37,218.33,0.12549]
[1733791873901,22.37189093,218.35,218.33,0.12549]
[1733791874595,20.0,218.37,218.33,0.12549]
[1733791874596,22.37189093,218.37,218.33,0.12549]
[1733791874888,42.37189093,218.34,218.33,0.12549]
[1733791875601,22.37189093,218.34,218.33,0.12549]
[1733791875801,22.37189093,218.34,218.32,0.5399253]
[1733791875977,22.37189093,218.33,218.32,0.41443531]
[1733791876180,22.37189093,218.34,218.32,0.41443531]
[1733791877295,30.62181648,218.4,218.32,0.41443531]
[1733791877296,22.37189093,218.33,218.32,0.41443531]
[1733791881000,22.37189093,218.33,218.32,3.531e-05]
[1733791881171,54.74378186,218.33,218.32,3.531e-05]
[1733791881371,20.0,218.3,218.2,22.37189093]
[1733791881585,20.0,218.3,218.11,10.0]
[1733791881586,22.37189093,218.28,218.21,22.37189093]
[1733791882102,22.37189093,218.26,218.19,22.37189093]
[1733791882698,22.37189093,218.25,218.19,22.37189093]
[1733791883293,22.37189093,218.25,218.18,22.37189093]
[1733791883493,22.37189093,218.25,218.19,22.37189093]
[1733791883717,22.37189093,218.26,218.19,22.37189093]
[1733791883896,22.37189093,218.28,218.21,22.37189093]
[1733791884297,22.37189093,218.26,218.19,334.37189093]
[1733791884602,22.37189093,218.26,218.2,0.12549]
[1733791884801,22.37189093,218.24,218.19,0.12549]
[1733791885417,22.37189093,218.25,218.18,22.49738093]
[1733791885723,22.37189093,218.26,218.2,22.49738093]
[1733791886224,2.2905,218.29,218.19,0.12549]
[1733791886225,22.37189093,218.25,218.19,0.12549]
[1733791886526,22.37189093,218.22,218.15,22.37189093]
[1733791886732,22.37189093,218.23,218.16,22.37189093]
[1733791887102,22.37189093,218.18,218.12,22.37189093]
[1733791887303,22.37189093,218.13,218.1,0.5399253]
[1733791887517,1.6568,218.24,218.1,0.5399253]
[1733791887518,22.37189093,218.11,218.1,0.5399253]
[1733791889531,44.74378186,218.11,218.1,0.5399253]
[1733791889708,22.37189093,218.11,218.1,0.5399253]
[1733791889908,22.37189093,218.12,218.1,0.5399253]
[1733791890127,22.37189093,218.15,218.1,0.5399253]
[1733791890326,22.37189093,218.13,218.1,0.5399253]
[1733791890541,22.37189093,218.14,218.11,0.12549]
[1733791890719,6.6281,218.22,218.11,0.12549]
[1733791891807,22.37189093,218.15,218.11,0.12549]
[1733791892111,22.37189093,218.18,218.11,22.49738093]
[1733791892312,22.37189093,218.19,218.13,0.12549]
[1733791892924,22.37189093,218.2,218.14,0.12549]
[1733791893129,22.37189093,218.17,218.11,0.12549]
[1733791893335,6.6281,218.22,218.11,0.12549]
[1733791893336,22.37189093,218.18,218.11,22.49738093]
[1733791893515,22.37189093,218.19,218.13,0.12549]
[1733791894431,22.37189093,218.21,218.13,334.49738093]
[1733791894620,22.37189093,218.21,218.15,0.12549]
[1733791894816,22.37189093,218.2,218.15,0.12549]
[1733791895032,22.37189093,218.22,218.15,0.12549]
[1733791895228,22.37189093,218.21,218.15,0.12549]
[1733791895813,8.9188,218.27,218.15,0.12549]
[1733791895814,22.37189093,218.2,218.15,0.12549]
[1733791896018,22.37189093,218.2,218.13,22.49738093]
[1733791896223,22.37189093,218.21,218.14,22.37189093]
[1733791896436,22.37189093,218.21,218.15,0.12549]
[1733791897016,22.37189093,218.19,218.14,0.12549]
[1733791897314,22.37189093,218.19,218.13,0.12549]
[1733791897718,22.37189093,218.2,218.13,22.37189093]
[1733791897918,22.37189093,218.21,218.14,22.49738093]
[1733791898145,1.81482623,218.28,218.11,6.6116]
[1733791898146,22.37189093,218.23,218.16,0.12549]
[1733791898353,22.37189093,218.26,218.21,0.12549]
[1733791898540,22.37189093,218.25,218.21,0.12549]
[1733791898741,22.37189093,218.24,218.21,0.12549]
[1733791898925,22.37189093,218.25,218.19,0.12549]
[1733791899455,22.37189093,218.29,218.23,0.12549]
[1733791899630,22.37189093,218.31,218.24,22.37189093]
[1733791899822,22.37189093,218.31,218.25,0.12549]
[1733791900032,22.37189093,218.32,218.25,22.49738093]
[1733791900519,22.37189093,218.33,218.27,0.12549]
[1733791900838,22.37189093,218.33,218.25,0.12549]
[1733791900839,22.37189093,218.29,218.25,0.12549]
[1733791901041,22.37189093,218.26,218.19,23.95249093]
[1733791901367,22.37189093,218.26,218.18,6.0153]
[1733791901368,22.37189093,218.23,218.18,6.0153]
[1733791901556,31.73438615,218.23,218.18,6.0153]
[1733791901845,9.36249522,218.23,218.18,28.38719093]
[1733791902020,9.36249522,218.23,218.19,22.37189093]
[1733791902648,9.36249522,218.23,218.18,28.38719093]
[1733791902846,9.36249522,218.23,218.22,0.12549]
[1733791903154,22.37189093,218.29,218.22,22.49738093]
[1733791903363,20.0,218.13,218.1,0.5399253]
[1733791903524,10.75965259,218.13,218.1,0.5399253]
[1733791904049,9.10155259,218.13,218.1,0.5399253]
[1733791904641,9.10155259,218.13,218.1,312.5399253]
[1733791904845,22.37189093,218.12,218.1,312.5399253]
[1733791905044,31.47344352,218.12,218.1,0.5399253]
[1733791906770,9.08351919,218.11,218.1,0.5399253]
[1733791907652,31.45541012,218.11,218.1,0.5399253]
[1733791907854,41.45541012,218.11,217.96,22.37189093]
[1733791908071,22.37189093,218.02,217.97,312.0]
[1733791908273,31.26941499,218.02,217.97,312.0]
[1733791909167,8.89752406,218.02,217.97,22.37189093]
[1733791909350,22.37189093,218.08,217.99,22.37189093]
[1733791909681,31.62004243,218.08,218.01,22.37189093]
[1733791909982,31.62004243,218.08,218.02,0.12549]
[1733791911478,9.2481515,218.08,218.04,0.12549]
[1733791911778,9.21273645,218.08,218.06,0.12549]
[1733791912082,9.21273645,218.12,218.08,0.12549]
[1733791912750,9.21273645,218.12,218.07,0.12549]
[1733791913152,31.83188093,218.12,218.05,0.12549]
[1733791913448,22.37189093,218.09,218.02,0.12549]
[1733791913653,22.37189093,218.1,218.03,22.37189093]
[1733791913860,22.37189093,218.11,218.04,22.49738093]
[1733791914069,22.37189093,218.09,218.04,0.12549]
[1733791914259,9.45999,218.09,218.04,0.12549]
[1733791914573,31.83188093,218.1,218.02,22.49738093]
[1733791914768,9.45999,218.1,218.04,0.12549]
[1733791915275,22.37189093,218.09,218.02,22.37189093]
[1733791915480,22.37189093,218.09,218.01,20.0]
[1733791915481,22.37189093,218.08,218.01,22.37189093]
[1733791915680,9.45999,218.08,218.02,334.37189093]
[1733791915977,9.45999,218.08,218.03,22.37189093]
[1733791916561,9.45999,218.08,218.07,0.12549]
[1733791916866,1.0798506,218.11,218.07,0.12549]
[1733791917178,10.5398406,218.11,218.07,0.12549]
[1733791917350,10.5398406,218.11,218.06,0.12549]
[1733791917880,10.5398406,218.11,218.05,0.12549]
[1733791918065,32.91173153,218.11,218.05,0.12549]
[1733791918475,22.37189093,218.1,218.04,0.12549]
[1733791918772,9.45999,218.1,218.04,22.49738093]
[1733791918989,1.0798506,218.11,218.07,0.12549]
[1733791919289,1.0798506,218.11,218.09,0.12549]
[1733791919655,1.0798506,218.11,218.09,312.12549]
[1733791919854,1.0798506,218.11,218.09,334.49738093]
[1733791920168,1.0798506,218.11,218.1,22.49738093]
[1733791922274,1.0798506,218.11,218.08,0.12549]
[1733791922462,1.0798506,218.11,218.07,22.49738093]
[1733791922790,1.0798506,218.11,218.09,0.12549]
[1733791923100,1.0798506,218.11,218.1,22.49738093]
[1733791923479,5.06e-05,218.11,218.1,54.86927186]
[1733791923684,1.5247,218.25,218.16,0.12549]
[1733791923896,28.59849093,218.27,218.19,22.37189093]
[1733791923897,22.37189093,218.27,218.19,22.37189093]
[1733791924267,22.37189093,218.28,218.22,0.12549]
[1733791924974,22.37189093,218.26,218.21,0.12549]
[1733791925176,22.37189093,218.24,218.2,0.12549]
[1733791925376,22.37189093,218.21,218.14,22.37189093]
[1733791925774,22.37189093,218.2,218.13,22.37189093]
[1733791926875,10.0,218.29,218.07,13.30327493]
[1733791926876,22.37189093,218.19,218.12,22.37189093]
[1733791927077,22.37189093,218.18,218.12,22.37189093]
[1733791927273,22.37189093,218.16,218.09,22.37189093]
[1733791927477,22.37189093,218.14,218.07,22.37189093]
[1733791927691,22.37189093,218.13,218.06,22.37189093]
[1733791927892,1.5247,218.19,218.03,22.37189093]
[1733791927893,22.37189093,218.1,218.03,22.37189093]
[1733791928571,3.8162,218.19,218.05,22.37189093]
[1733791928772,3.8162,218.19,218.09,22.37189093]
[1733791928773,22.37189093,218.16,218.09,22.37189093]
[1733791928984,22.37189093,218.18,218.12,22.37189093]
[1733791929183,1.5247,218.19,218.13,22.49738093]
[1733791929481,1.5247,218.19,218.15,0.12549]
[1733791929685,1.5247,218.19,218.16,0.12549]
[1733791929903,23.93309093,218.25,218.18,0.12549]
[1733791930075,22.37189093,218.23,218.18,0.12549]
[1733791930276,1.5612,218.25,218.18,22.49738093]
[1733791930602,1.5612,218.25,218.18,0.12549]
[1733791931087,22.37189093,218.21,218.18,0.12549]
[1733791931596,22.37189093,218.22,218.18,0.12549]
[1733791931792,22.37189093,218.22,218.15,22.37189093]
[1733791931793,22.37189093,218.22,218.16,0.12549]
[1733791932294,22.37189093,218.22,218.15,22.49738093]
[1733791932595,22.37189093,218.22,218.1,22.37189093]
[1733791932596,23.93309093,218.25,218.19,0.12549]
[1733791933380,22.37189093,218.3,218.23,22.37189093]
[1733791933585,1.5612,218.31,218.25,0.12549]
[1733791933586,23.93309093,218.31,218.25,0.12549]
[1733791933804,1.5612,218.31,218.26,22.37189093]
[1733791934103,1.5612,218.31,218.27,22.49738093]
[1733791934305,1.5612,218.31,218.28,0.12549]
[1733791935203,1.5612,218.31,218.27,0.12549]
[1733791935408,22.37189093,218.29,218.26,0.12549]
[1733791935598,10.57912749,218.38,218.26,0.12549]
[1733791935599,22.37189093,218.32,218.26,0.12549]
[1733791935912,22.37189093,218.28,218.22,312.0]
[1733791936112,1.5612,218.36,218.22,312.0]
[1733791936113,1.5612,218.36,218.25,20.0]
[1733791936604,7.13676157,218.57,218.26,20.0]
[1733791936605,8.7544,218.47,218.26,20.0]
[1733791936800,1.5612,218.46,218.26,20.0]
[1733791936999,10.0,218.45,218.26,20.0]
[1733791937307,22.37189093,218.37,218.31,0.12549]
[1733791937487,22.37189093,218.33,218.29,0.12549]
[1733791937680,22.37189093,218.31,218.26,0.12549]
[1733791937884,22.37189093,218.29,218.24,0.12549]
[1733791938101,22.37189093,218.29,218.22,22.37189093]
[1733791938306,22.37189093,218.27,218.2,22.37189093]
[1733791938516,2.2902,218.32,218.14,6.1984]
[1733791938716,22.37189093,218.26,218.19,22.37189093]
[1733791939186,22.37189093,218.27,218.2,22.37189093]
[1733791939385,22.37189093,218.28,218.21,22.37189093]
[1733791939611,22.37189093,218.24,218.17,22.37189093]
[1733791939884,22.37189093,218.23,218.16,22.37189093]
[1733791940083,22.37189093,218.23,218.11,12.2625]
[1733791940084,22.37189093,218.22,218.15,22.37189093]
[1733791940285,22.37189093,218.16,218.09,22.37189093]
[1733791941022,22.37189093,218.13,218.06,22.37189093]
[1733791941401,22.37189093,218.11,218.04,22.37189093]
[1733791941604,22.37189093,218.1,218.03,22.37189093]
[1733791941789,22.37189093,218.08,218.01,22.37189093]
[1733791942414,22.37189093,218.07,218.0,22.37189093]
[1733791943293,22.37189093,218.09,218.02,22.37189093]
[1733791943489,22.37189093,218.1,218.03,22.37189093]
[1733791943695,22.37189093,218.09,218.02,22.37189093]
[1733791944126,22.37189093,218.11,218.04,22.37189093]
[1733791944827,22.37189093,218.11,218.05,0.12549]
[1733791945317,22.37189093,218.1,218.05,0.12549]
[1733791945488,22.37189093,218.06,217.98,22.37189093]
[1733791945692,22.37189093,218.04,217.97,22.37189093]
[1733791945904,22.37189093,218.08,218.01,22.37189093]
[1733791946121,22.37189093,218.07,218.0,22.37189093]
[1733791946474,6.3965,218.27,218.08,10.0]
[1733791946590,6.3965,218.27,218.11,10.0]
[1733791946784,1.5214,218.28,218.15,20.12549]
[1733791947004,6.3965,218.34,218.18,10.12549]
[1733791947322,6.3965,218.34,218.22,0.12549]
[1733791947614,6.3965,218.34,218.27,0.12549]
[1733791947615,22.37189093,218.32,218.27,0.12549]
[1733791947807,22.37189093,218.31,218.27,0.12549]
[1733791948124,22.37189093,218.3,218.27,0.12549]
[1733791948712,22.37189093,218.3,218.23,0.12549]
[1733791949023,22.37189093,218.31,218.24,22.37189093]
[1733791949319,22.37189093,218.31,218.13,10.0]
[1733791949320,36.41042515,218.28,218.25,0.12549]
[1733791949489,36.41042515,218.28,218.2,36.41042515]
[1733791949490,36.41042515,218.28,218.21,36.53591515]
[1733791949691,36.41042515,218.29,218.21,36.53591515]
[1733791949892,36.41042515,218.26,218.2,0.12549]
[1733791950401,36.41042515,218.25,218.18,36.41042515]
[1733791950790,36.41042515,218.24,218.16,36.41042515]
[1733791950998,36.41042515,218.22,218.15,36.41042515]
[1733791951408,36.41042515,218.23,218.16,36.41042515]
[1733791951604,36.41042515,218.2,218.12,36.41042515]
[1733791951812,36.41042515,218.17,218.09,36.41042515]
[1733791952318,36.41042515,218.16,218.09,36.41042515]
[1733791952488,36.41042515,218.13,218.06,36.41042515]
[1733791952689,36.41042515,218.12,218.05,36.41042515]
[1733791952907,36.41042515,218.12,218.0,43.06782515]
[1733791952908,36.41042515,218.08,218.01,36.41042515]
[1733791953116,36.41042515,218.11,218.04,36.41042515]
[1733791953993,36.41042515,218.07,218.0,36.41042515]
[1733791954412,36.41042515,218.06,217.99,36.41042515]
[1733791955218,36.41042515,218.05,217.98,36.41042515]
[1733791955696,36.41042515,218.02,217.95,36.41042515]
[1733791956498,36.41042515,218.05,217.98,36.41042515]
[1733791956691,36.41042515,218.02,217.95,36.41042515]
[1733791957305,36.41042515,218.05,217.97,36.41042515]
[1733791957492,36.41042515,218.01,217.94,36.41042515]
[1733791957911,36.41042515,218.02,217.94,36.41042515]
[1733791958906,36.41042515,218.02,217.95,0.12549]
[1733791959114,36.41042515,218.0,217.92,36.41042515]
[1733791959324,36.41042515,217.97,217.89,36.95035045]
[1733791959620,36.41042515,217.96,217.89,0.5399253]
[1733791959817,20.2111,218.04,217.89,0.5399253]
[1733791959818,36.41042515,217.93,217.89,0.5399253]
[1733791960196,36.41042515,217.92,217.89,0.5399253]
[1733791960394,36.41042515,217.95,217.89,0.5399253]
[1733791960790,36.41042515,218.01,217.94,36.41042515]
[1733791960990,7.9179,218.04,217.89,0.5399253]
[1733791961220,8.3496,217.77,217.67,14.4434631]
[1733791961421,8.3496,217.77,217.59,35.29598795]
[1733791961422,8.3496,217.59,217.56,1.86066052]
[1733791961722,10.0,217.73,217.57,7.4]
[1733791961902,10.0,217.75,217.63,1.6504]
[1733791962113,36.41042515,217.68,217.61,6.046]
[1733791962422,10.0,217.65,217.61,6.046]
[1733791962594,36.41042515,217.66,217.56,36.41042515]
[1733791962789,36.41042515,217.66,217.52,1.6504]
[1733791962790,10.0,217.62,217.54,36.41042515]
[1733791962994,36.41042515,217.64,217.56,36.41042515]
[1733791962995,46.41042515,217.64,217.56,36.41042515]
[1733791963197,10.0,217.64,217.56,36.41042515]
[1733791963395,46.41042515,217.64,217.56,36.41042515]
[1733791963926,18.3496,217.61,217.52,36.41042515]
[1733791964302,10.0,217.59,217.54,36.41042515]
[1733791964504,18.3496,217.61,217.54,36.41042515]
[1733791964720,8.3496,217.59,217.52,36.41042515]
[1733791964900,46.41042515,217.6,217.53,36.41042515]
[1733791965269,8.3496,217.59,217.53,36.41042515]
[1733791965408,46.41042515,217.6,217.51,42.45642515]
[1733791965612,46.41042515,217.6,217.53,36.41042515]
[1733791966130,8.3496,217.58,217.53,36.41042515]
[1733791966423,36.41042515,217.7,217.57,36.41042515]
[1733791966424,10.0,217.62,217.57,36.41042515]
[1733791966721,8.3496,217.66,217.6,36.41042515]
[1733791966902,8.3496,217.66,217.61,36.41042515]
[1733791967224,18.3496,217.67,217.62,36.41042515]
[1733791967403,18.3496,217.67,217.61,0.12549]
[1733791967814,10.0,217.67,217.61,36.53591515]
[1733791968012,8.3496,217.69,217.62,36.41042515]
[1733791968317,10.0,217.65,217.63,0.12549]
[1733791968703,10.0,217.65,217.61,0.12549]
[1733791969093,10.0,217.65,217.59,36.53591515]
[1733791969298,46.41042515,217.67,217.59,36.53591515]
[1733791970698,10.0,217.59,217.45,2.1903253]
[1733791970902,46.41042515,217.59,217.54,312.0]
[1733791971106,36.41042515,217.61,217.54,312.0]
[1733791971607,8.3496,217.6,217.54,348.41042515]
[1733791971913,8.3496,217.6,217.54,312.0]
[1733791972526,46.41042515,217.61,217.54,348.41042515]
[1733791972834,10.0,217.61,217.54,348.41042515]
[1733791973330,36.41042515,217.61,217.55,0.12549]
[1733791973520,36.41042515,217.64,217.57,0.12549]
[1733791973717,10.0,217.63,217.57,36.53591515]
[1733791974209,36.41042515,217.64,217.59,0.12549]
[1733791974210,8.3496,217.64,217.59,0.12549]
[1733791974415,10.0,217.63,217.59,0.12549]
[1733791974616,36.41042515,217.63,217.59,0.12549]
[1733791974813,36.41042515,217.68,217.62,0.12549]
[1733791975014,10.0,217.7,217.62,0.12549]
[1733791975209,10.0,217.7,217.66,0.12549]
[1733791975407,44.76002515,217.72,217.66,0.12549]
[1733791976024,10.0,217.68,217.66,0.12549]
[1733791976207,36.41042515,217.7,217.64,0.12549]
[1733791976405,10.0,217.69,217.68,312.12549]
[1733791976623,8.3496,217.72,217.69,0.12549]
[1733791976831,8.3496,217.74,217.69,0.12549]
[1733791977004,46.41042515,217.7,217.69,0.12549]
[1733791977204,54.76002515,217.7,217.69,0.12549]
[1733791977826,10.0,217.7,217.69,0.12549]
[1733791978128,54.76002515,217.72,217.69,0.12549]
[1733791978305,44.76002515,217.79,217.72,0.12549]
[1733791978509,10.0,217.78,217.72,36.53591515]
[1733791978932,44.76002515,217.79,217.72,36.53591515]
[1733791979136,36.41042515,217.8,217.73,36.41042515]
[1733791979326,36.41042515,217.79,217.72,36.53591515]
[1733791979507,54.76002515,217.8,217.74,0.12549]
[1733791979906,54.76002515,217.8,217.77,0.12549]
[1733791980120,54.76002515,217.83,217.77,0.12549]
[1733791980323,36.41042515,217.78,217.77,0.12549]
[1733791980514,10.0,217.79,217.77,0.12549]
[1733791980712,10.0,217.78,217.77,0.12549]
[1733791981813,46.41042515,217.78,217.77,0.12549]
[1733791982014,10.0,217.75,217.69,36.41042515]
[1733791982213,8.3496,217.78,217.73,36.41042515]
[1733791982423,8.3496,217.78,217.66,20.0]
[1733791982424,8.3496,217.8,217.74,36.41042515]
[1733791982623,8.3496,217.8,217.66,29.0504]
[1733791982819,8.3496,217.8,217.66,1.6504]
[1733791983222,10.0,217.79,217.76,0.12549]
[1733791983614,8.3496,217.78,217.76,312.12549]
[1733791983943,8.3496,217.76,217.71,36.41042515]
[1733791984112,10.0,217.77,217.74,36.41042515]
[1733791984422,8.3496,217.8,217.76,36.41042515]
[1733791984624,10.0,217.81,217.76,36.41042515]
[1733791985038,8.3496,217.8,217.76,36.41042515]
[1733791985241,8.3496,217.78,217.74,36.41042515]
[1733791985447,10.0,217.77,217.75,0.12549]
[1733791985626,10.0,217.77,217.73,36.41042515]
[1733791985809,10.0,217.77,217.69,20.0]
[1733791985810,10.0,217.75,217.7,36.41042515]
[1733791986014,10.0,217.78,217.74,36.41042515]
[1733791986347,10.0,217.79,217.65,18.8863]
[1733791986512,10.0,217.81,217.65,20.5367]
[1733791986910,18.3496,217.79,217.75,312.0]
[1733791987248,10.0,217.79,217.78,0.12549]
[1733791987609,10.0,217.81,217.78,36.53591515]
[1733791987819,8.3496,217.83,217.81,0.12549]
[1733791988110,8.3496,217.88,217.83,0.12549]
[1733791988314,10.0,217.89,217.86,0.12549]
[1733791988615,10.0,217.89,217.86,36.53591515]
[1733791988838,8.3496,217.88,217.86,0.12549]
[1733791989148,10.0,217.85,217.84,0.12549]
[1733791989319,18.3496,217.88,217.84,36.41042515]
[1733791989639,18.3496,217.88,217.83,36.41042515]
[1733791989830,8.3496,217.85,217.84,0.12549]
[1733791991042,10.0,217.79,217.78,36.41042515]
[1733791991221,10.0,217.79,217.77,36.41042515]
[1733791991540,10.0,217.79,217.75,36.41042515]
[1733791991743,8.3496,217.77,217.75,36.41042515]
[1733791991954,10.0,217.79,217.74,36.41042515]
[1733791991955,8.3496,217.75,217.74,36.41042515]
[1733791992156,8.3496,217.73,217.7,36.41042515]
[1733791992321,8.3496,217.73,217.62,11.4875]
[1733791992322,8.3496,217.73,217.69,36.41042515]
[1733791992624,8.3496,217.71,217.68,36.41042515]
[1733791992832,18.3496,217.68,217.65,36.41042515]
[1733791993242,8.3496,217.64,217.6,36.41042515]
[1733791993550,8.3496,217.6,217.59,36.41042515]
[1733791994621,8.3496,217.6,217.59,36.53591515]
[1733791994825,10.0,217.61,217.59,36.53591515]
[1733791995023,10.0,217.61,217.6,36.53591515]
[1733791995350,8.3496,217.57,217.56,36.41042515]
[1733791996453,10.0,217.6,217.56,36.41042515]
[1733791996620,10.0,217.6,217.59,36.53591515]
[1733791996621,8.3496,217.6,217.59,36.53591515]
[1733791996820,18.3496,217.6,217.59,36.53591515]
[1733791997051,8.3496,217.6,217.59,36.53591515]
[1733791997548,8.3496,217.6,217.57,0.12549]
[1733791997549,10.0,217.59,217.57,0.12549]
[1733791997757,10.0,217.57,217.55,36.41042515]
[1733791998051,10.0,217.57,217.56,36.41042515]
[1733791998355,10.0,217.57,217.55,36.41042515]
[1733791998529,10.0,217.57,217.5,36.41042515]
[1733791998530,8.3496,217.54,217.5,36.41042515]
[1733791998846,8.3496,217.54,217.41,6.3335]
[1733791998847,8.3496,217.51,217.49,36.41042515]
[1733791999064,8.3496,217.51,217.5,36.41042515]
[1733791999855,8.3496,217.51,217.5,36.53591515]
[1733792000246,8.3496,217.51,217.5,36.41042515]
[1733792000438,8.3496,217.51,217.49,36.41042515]
[1733792000653,10.0,217.5,217.49,36.41042515]
[1733792000837,18.3496,217.54,217.49,36.41042515]
[1733792001039,18.3496,217.56,217.53,36.41042515]
[1733792001266,18.3496,217.56,217.52,312.0]
[1733792001445,8.3496,217.56,217.55,36.41042515]
[1733792001769,8.3496,217.54,217.53,36.41042515]
[1733792002061,8.3496,217.54,217.53,36.53591515]
[1733792002658,18.3496,217.54,217.53,36.53591515]
[1733792003076,18.3496,217.54,217.52,0.12549]
[1733792003363,18.3496,217.54,217.52,36.53591515]
[1733792003562,18.3496,217.54,217.52,0.12549]
[1733792003982,18.3496,217.51,217.5,0.12549]
[1733792004137,18.3496,217.49,217.48,36.41042515]
[1733792004476,18.3496,217.49,217.46,36.41042515]
[1733792004645,8.3496,217.47,217.46,36.41042515]
[1733792005051,8.3496,217.47,217.45,312.5399253]
[1733792005052,10.0,217.46,217.45,0.5399253]
[1733792006178,8.3496,217.49,217.45,36.95035045]